bitfinex/quotes_BTCUSD_20240712
["timestamp","ask_amount","ask_price","bid_price","bid_amount"]
[1720813839640,0.53163596,57877.0,57876.0,0.01828452]
[1720813839865,0.172784,57876.0,57874.0,0.0244]
[1720813840066,0.01339596,57875.0,57874.0,0.0244]
[1720813840498,0.17278,57877.0,57875.0,0.0004]
[1720813840718,0.17278,57877.0,57876.0,0.0004]
[1720813840940,0.18539567,57877.0,57876.0,0.0004]
[1720813841150,0.18539567,57877.0,57876.0,0.0094]
[1720813841567,0.01261567,57877.0,57876.0,0.0004]
[1720813841773,0.518322,57879.0,57878.0,0.0004]
[1720813841989,0.18538067,57879.0,57878.0,0.0004]
[1720813842197,0.172778,57878.0,57877.0,0.0004]
[1720813842403,0.17278,57877.0,57876.0,0.0124]
[1720813842608,0.172778,57878.0,57877.0,0.0004]
[1720813842817,0.18536096,57878.0,57877.0,0.0004]
[1720813843027,0.01258296,57878.0,57877.0,0.0004]
[1720813843242,0.01258296,57880.0,57877.0,0.0004]
[1720813843449,0.18535496,57880.0,57879.0,0.0004]
[1720813843634,0.18525496,57880.0,57879.0,0.0004]
[1720813844185,0.345554,57878.0,57877.0,0.008]
[1720813844410,0.518331,57878.0,57877.0,0.008]
[1720813844622,0.518231,57878.0,57877.0,0.008]
[1720813844845,0.172783,57876.0,57873.0,0.0004]
[1720813845067,0.172789,57874.0,57871.0,0.0004]
[1720813845280,0.172789,57874.0,57872.0,0.0004]
[1720813845488,0.01808291,57873.0,57872.0,0.0004]
[1720813846119,0.01808291,57873.0,57872.0,0.173195]
[1720813846339,0.01808291,57873.0,57872.0,0.984375]
[1720813846575,0.01808291,57873.0,57872.0,1.42874807]
[1720813847837,0.01808291,57873.0,57872.0,1.44274807]
[1720813848077,0.01798291,57873.0,57872.0,1.44274807]
[1720813848769,0.01798291,57873.0,57872.0,0.99115807]
[1720813848984,0.01798291,57873.0,57872.0,0.0284]
[1720813849623,0.01798291,57873.0,57872.0,0.201195]
[1720813849833,0.01798291,57873.0,57872.0,0.0284]
[1720813850040,0.01798291,57873.0,57872.0,0.201195]
[1720813850254,0.01788291,57873.0,57872.0,0.0284]
[1720813850461,0.19067491,57873.0,57872.0,0.0284]
[1720813850900,0.01788291,57873.0,57872.0,0.0284]
[1720813851724,0.88184291,57873.0,57872.0,0.028]
[1720813852145,0.53625891,57873.0,57872.0,0.028]
[1720813852356,0.53625891,57873.0,57872.0,0.04630821]
[1720813852778,0.53625891,57873.0,57872.0,0.04722121]
[1720813853195,0.53625891,57873.0,57872.0,0.04682121]
[1720813853426,0.54871979,57873.0,57872.0,0.04682121]
[1720813853632,0.54861979,57873.0,57872.0,0.04682121]
[1720813854056,0.54859843,57873.0,57872.0,0.04682121]
[1720813854268,0.89418243,57873.0,57872.0,0.04682121]
[1720813854480,1.23976643,57873.0,57872.0,0.028913]
[1720813855361,1.29127181,57873.0,57872.0,0.014913]
[1720813855569,1.23976643,57873.0,57872.0,0.000913]
[1720813855773,0.94574117,57873.0,57872.0,0.011913]
[1720813855983,0.89408243,57873.0,57872.0,0.011913]
[1720813856191,1.29132517,57873.0,57872.0,0.007913]
[1720813857016,1.41092517,57873.0,57872.0,0.007913]
[1720813857462,1.29108915,57873.0,57872.0,0.007913]
[1720813857674,1.29108915,57873.0,57872.0,0.011913]
[1720813857887,1.29051408,57873.0,57872.0,0.011913]
[1720813858302,0.94493008,57873.0,57872.0,0.011913]
[1720813859027,0.94483008,57873.0,57872.0,0.011913]
[1720813860193,1.29041408,57873.0,57872.0,0.011913]
[1720813860648,1.29256901,57873.0,57872.0,0.011913]
[1720813861303,0.94688501,57873.0,57872.0,0.011913]
[1720813861720,1.41206901,57873.0,57872.0,0.011913]
[1720813861928,1.29246901,57873.0,57872.0,0.011913]
[1720813862147,1.29246901,57873.0,57872.0,0.149413]
[1720813862148,0.94688501,57873.0,57872.0,0.149413]
[1720813862423,0.08292501,57873.0,57872.0,0.3377893]
[1720813862657,0.03038738,57873.0,57872.0,0.47569751]
[1720813862888,0.03038738,57873.0,57872.0,1.16687751]
[1720813863539,0.03038738,57873.0,57872.0,0.69428751]
[1720813863757,0.03038738,57873.0,57872.0,0.67910621]
[1720813863961,0.03038738,57873.0,57872.0,0.69210621]
[1720813864402,0.03038738,57873.0,57872.0,1.03769621]
[1720813864613,0.03038738,57873.0,57872.0,1.03779621]
[1720813864825,0.03038738,57873.0,57872.0,1.15379621]
[1720813865032,0.03038738,57873.0,57872.0,1.30793553]
[1720813865242,0.02993319,57873.0,57872.0,1.30793553]
[1720813865480,0.02993319,57873.0,57872.0,1.30393553]
[1720813866340,0.02993319,57873.0,57872.0,1.31393553]
[1720813866549,0.02981373,57873.0,57872.0,1.31393553]
[1720813867226,0.02981373,57873.0,57872.0,1.30093553]
[1720813867445,0.02981373,57873.0,57872.0,1.31493553]
[1720813867893,0.02981373,57873.0,57872.0,1.29093553]
[1720813868103,0.02981373,57873.0,57872.0,1.31893553]
[1720813868942,0.02981373,57873.0,57872.0,1.19893553]
[1720813869798,0.02981373,57873.0,57872.0,1.31893553]
[1720813869799,0.02974986,57873.0,57872.0,1.31893553]
[1720813870480,0.02961155,57873.0,57872.0,1.31893553]
[1720813871098,0.02961155,57873.0,57872.0,1.30493553]
[1720813871313,0.02961155,57873.0,57872.0,1.31893553]
[1720813871733,0.02961155,57873.0,57872.0,1.30493553]
[1720813871940,0.02961155,57873.0,57872.0,1.18493553]
[1720813872158,0.02961155,57873.0,57872.0,0.18482121]
[1720813872379,0.02961155,57873.0,57872.0,0.04692121]
[1720813872380,0.7195455,57873.0,57872.0,0.04692121]
[1720813872626,1.9991975,57873.0,57872.0,0.04692121]
[1720813872853,2.1991975,57873.0,57872.0,0.029013]
[1720813873065,2.9603439,57873.0,57872.0,0.01884231]
[1720813873303,3.26036252,57873.0,57872.0,0.00088232]
[1720813873518,2.399855,57872.0,57871.0,0.00088232]
[1720813873728,3.07952861,57872.0,57871.0,0.00088232]
[1720813873948,2.87952861,57872.0,57871.0,0.00088232]
[1720813874158,0.864212,57856.0,57855.0,0.51068611]
[1720813874382,1.02805821,57856.0,57855.0,0.52654527]
[1720813874612,1.37374321,57856.0,57855.0,0.01585916]
[1720813874842,0.172854,57852.0,57851.0,0.0004]
[1720813875046,0.06383349,57852.0,57851.0,0.0004]
[1720813875265,0.01209465,57852.0,57851.0,0.0004]
[1720813875473,0.345693,57855.0,57852.0,0.0004]
[1720813875474,0.172851,57853.0,57852.0,0.0004]
[1720813875673,0.23668157,57853.0,57852.0,0.0004]
[1720813875897,0.18494041,57853.0,57852.0,0.0004]
[1720813876098,0.2368757,57853.0,57852.0,0.0004]
[1720813876306,0.18514326,57853.0,57852.0,0.0004]
[1720813876519,0.01229226,57853.0,57852.0,0.0004]
[1720813876729,0.345681,57857.0,57855.0,0.0004]
[1720813876730,0.172841,57857.0,57855.0,0.0004]
[1720813876956,0.01228476,57856.0,57855.0,0.0004]
[1720813877181,0.18534788,57857.0,57855.0,0.07646255]
[1720813877405,0.53103488,57856.0,57855.0,0.01585916]
[1720813877880,0.01250788,57856.0,57855.0,0.0004]
[1720813878096,0.18302936,57859.0,57854.0,0.075]
[1720813878317,0.12679734,57866.0,57855.0,0.49029315]
[1720813878318,0.00306353,57856.0,57855.0,0.49029315]
[1720813878545,0.00306353,57859.0,57858.0,0.172836]
[1720813878758,0.00306353,57859.0,57858.0,0.62005281]
[1720813879005,0.4216984,57868.0,57861.0,0.345655]
[1720813879006,0.00306353,57865.0,57861.0,0.345655]
[1720813879225,0.00306353,57865.0,57862.0,0.36673823]
[1720813879434,0.00306353,57866.0,57865.0,0.595048]
[1720813879641,0.17586553,57870.0,57866.0,0.172811]
[1720813879853,0.172802,57870.0,57867.0,0.02005073]
[1720813880076,0.172806,57869.0,57867.0,0.02005073]
[1720813880312,0.345598,57871.0,57868.0,0.172805]
[1720813880313,0.01021563,57871.0,57868.0,0.172805]
[1720813880545,0.01013454,57873.0,57870.0,0.1728]
[1720813880785,0.172789,57874.0,57871.0,0.02085247]
[1720813882067,0.172789,57874.0,57871.0,0.01985247]
[1720813882310,0.172792,57873.0,57871.0,0.01985247]
[1720813882518,0.421637,57875.0,57871.0,0.02485247]
[1720813882519,0.345572,57875.0,57871.0,0.02485247]
[1720813882752,0.518385,57872.0,57871.0,0.005]
[1720813883010,0.518385,57872.0,57871.0,0.008]
[1720813883210,0.518385,57872.0,57871.0,0.003]
[1720813883417,0.13019529,57876.0,57862.0,0.0666]
[1720813883613,0.345552,57879.0,57862.0,0.0666]
[1720813883614,0.172816,57865.0,57862.0,0.0666]
[1720813883817,0.17281,57867.0,57862.0,0.239422]
[1720813884199,0.172814,57866.0,57862.0,0.239422]
[1720813884568,0.00306353,57867.0,57862.0,0.239422]
[1720813884784,0.172827,57861.0,57860.0,0.0787]
[1720813884988,0.06466963,57867.0,57857.0,0.0647]
[1720813885141,0.345653,57862.0,57857.0,0.0647]
[1720813885455,0.172829,57861.0,57857.0,0.0647]
[1720813885659,0.34564,57864.0,57858.0,0.292835]
[1720813885871,0.172826,57862.0,57858.0,0.292835]
[1720813886086,0.001,57861.0,57860.0,0.014]
[1720813886685,0.001,57861.0,57858.0,0.292836]
[1720813886686,0.172825,57862.0,57858.0,0.292836]
[1720813886897,0.172825,57862.0,57858.0,0.302836]
[1720813887371,0.01370199,57861.0,57858.0,0.302836]
[1720813887593,0.172825,57862.0,57858.0,0.302836]
[1720813887594,0.172825,57862.0,57859.0,0.0207806]
[1720813888034,0.172825,57862.0,57858.0,0.313836]
[1720813888240,0.172825,57862.0,57860.0,0.0207727]
[1720813888463,0.172825,57862.0,57859.0,0.0207806]
[1720813888668,0.172825,57862.0,57861.0,0.0207648]
[1720813888877,0.08614618,57867.0,57857.0,0.410377]
[1720813888878,0.07607753,57868.0,57864.0,0.12]
[1720813889093,0.07607753,57871.0,57869.0,0.172803]
[1720813889310,0.17279,57874.0,57868.0,0.12]
[1720813889515,0.4216517,57875.0,57868.0,0.12]
[1720813889516,0.00306353,57873.0,57870.0,0.0206937]
[1720813889741,0.00306353,57873.0,57869.0,0.0207016]
[1720813889742,0.172795,57872.0,57869.0,0.0207016]
[1720813889960,0.172795,57872.0,57871.0,0.0196858]
[1720813890180,0.172795,57872.0,57870.0,0.02052704]
[1720813890422,0.172795,57872.0,57871.0,0.02051914]
[1720813890423,1.3110006,57872.0,57871.0,0.02051914]
[1720813890649,1.38864555,57872.0,57871.0,0.02051914]
[1720813890858,1.209586,57871.0,57870.0,0.009]
[1720813891065,1.26187205,57871.0,57870.0,0.009]
[1720813891275,1.46653558,57871.0,57870.0,0.009]
[1720813891617,1.52227205,57871.0,57870.0,0.009]
[1720813892085,1.52227205,57871.0,57859.0,0.172832]
[1720813892086,0.17282,57864.0,57859.0,0.172832]
[1720813892299,0.172827,57862.0,57858.0,0.0656]
[1720813892430,0.345644,57863.0,57860.0,0.02060603]
[1720813892629,0.30142147,57862.0,57858.0,0.0656]
[1720813892882,0.172831,57860.0,57859.0,0.02061394]
[1720813893167,0.172828,57861.0,57859.0,0.02061394]
[1720813893289,0.172828,57861.0,57856.0,0.172842]
[1720813893495,0.172828,57861.0,57860.0,0.02060603]
[1720813893695,0.518381,57862.0,57857.0,0.172837]
[1720813893918,0.518381,57862.0,57860.0,0.02060603]
[1720813894131,0.518281,57862.0,57858.0,0.172836]
[1720813894334,0.172826,57862.0,57861.0,0.02059813]
[1720813894546,0.172826,57862.0,57858.0,0.172836]
[1720813894940,0.172826,57862.0,57859.0,0.012]
[1720813895142,0.172826,57862.0,57859.0,0.03261394]
[1720813895350,0.172826,57862.0,57858.0,0.172836]
[1720813895561,0.172826,57862.0,57860.0,0.02060603]
[1720813895768,0.172826,57862.0,57859.0,0.03461394]
[1720813895973,0.172826,57862.0,57861.0,0.02059813]
[1720813896191,0.172826,57862.0,57860.0,0.03460603]
[1720813896404,0.172726,57862.0,57859.0,0.172833]
[1720813896626,0.172726,57862.0,57861.0,0.02059813]
[1720813896837,0.172726,57862.0,57860.0,0.02060603]
[1720813897053,0.518375,57862.0,57861.0,0.02059813]
[1720813897268,0.92704572,57862.0,57861.0,0.02059813]
[1720813897475,0.92704572,57862.0,57860.0,0.011]
[1720813897476,0.864137,57861.0,57860.0,0.011]
[1720813897681,0.92979985,57861.0,57860.0,0.011]
[1720813898331,0.92979985,57861.0,57860.0,0.025]
[1720813898639,0.7038319,57861.0,57860.0,0.011]
[1720813898850,0.345671,57859.0,57854.0,0.251447]
[1720813899055,0.172845,57856.0,57855.0,0.02064554]
[1720813899272,0.18580285,57856.0,57852.0,0.172853]
[1720813899485,0.01295785,57855.0,57852.0,0.172853]
[1720813899698,0.01285785,57855.0,57852.0,0.172853]
[1720813899928,0.01275785,57855.0,57853.0,0.17285]
[1720813900135,0.17284,57857.0,57854.0,0.014]
[1720813900809,0.0862371,57863.0,57854.0,0.014]
[1720813900810,0.345658,57861.0,57854.0,0.014]
[1720813901019,0.518536,57855.0,57854.0,0.014]
[1720813901237,0.91704507,57855.0,57854.0,0.014]
[1720813901445,0.172851,57853.0,57852.0,0.014]
[1720813901650,0.05281807,57853.0,57852.0,0.028]
[1720813901876,0.05281807,57853.0,57852.0,0.014]
[1720813902091,0.05271807,57853.0,57850.0,0.1391]
[1720813902298,0.172853,57853.0,57850.0,0.1391]
[1720813902517,0.518536,57855.0,57854.0,0.014]
[1720813902719,0.864227,57855.0,57854.0,0.014]
[1720813902932,0.518554,57853.0,57852.0,0.009]
[1720813903134,0.172864,57849.0,57847.0,0.0769]
[1720813903366,0.345703,57853.0,57848.0,0.0788474]
[1720813903367,0.345715,57851.0,57848.0,0.0788474]
[1720813903578,0.172858,57851.0,57848.0,0.0788474]
[1720813904005,0.172858,57851.0,57847.0,0.249768]
[1720813904006,0.172861,57850.0,57847.0,0.0769]
[1720813905438,0.01006925,57856.0,57850.0,0.0598]
[1720813905654,0.25233294,57869.0,57850.0,0.0598]
[1720813905655,0.11921586,57873.0,57864.0,0.0753]
[1720813905893,0.070123,57878.0,57877.0,0.51834]
[1720813906108,0.070123,57878.0,57877.0,0.8639]
[1720813906327,0.00083,57878.0,57876.0,0.17278]
[1720813906979,0.00083,57878.0,57875.0,0.172785]
[1720813907418,0.00083,57878.0,57876.0,0.172782]
[1720813908329,0.00083,57878.0,57877.0,0.259174]
[1720813908533,0.00083,57878.0,57877.0,0.23528]
[1720813909182,0.00083,57878.0,57877.0,0.24528]
[1720813909399,0.00083,57878.0,57877.0,0.59084]
[1720813909622,0.00083,57878.0,57877.0,0.60484]
[1720813909835,0.01328342,57878.0,57877.0,0.60484]
[1720813910053,0.01328342,57878.0,57877.0,0.024]
[1720813910270,0.173607,57878.0,57877.0,0.024]
[1720813910485,0.97996543,57878.0,57877.0,0.024]
[1720813910706,1.39678663,57878.0,57877.0,0.024]
[1720813910946,1.90234063,57878.0,57877.0,0.024]
[1720813911159,2.00234063,57878.0,57877.0,0.024]
[1720813911375,2.00234063,57878.0,57877.0,0.01]
[1720813911626,2.89993203,57878.0,57877.0,0.01]
[1720813911841,1.309523,57874.0,57873.0,1e-08]
[1720813912054,1.79844342,57874.0,57873.0,1e-08]
[1720813912268,2.87033968,57874.0,57873.0,1e-08]
[1720813912475,2.67033968,57874.0,57873.0,1e-08]
[1720813912682,2.49903982,57874.0,57873.0,1e-08]
[1720813912900,2.69903982,57874.0,57873.0,1e-08]
[1720813913321,2.70103982,57874.0,57873.0,0.00100001]
[1720813913766,2.69903982,57874.0,57873.0,1e-08]
[1720813914381,2.70103982,57874.0,57873.0,0.00100001]
[1720813914811,0.1435,57858.0,57853.0,0.1]
[1720813915025,0.172848,57854.0,57853.0,0.1]
[1720813915235,0.93291958,57854.0,57853.0,0.1]
[1720813915466,0.93292779,57854.0,57853.0,0.1]
[1720813915673,1.00907336,57854.0,57853.0,0.1]
[1720813915914,0.93292779,57854.0,57853.0,0.103]
[1720813916098,0.58290942,57854.0,57853.0,0.103]
[1720813916307,0.58290942,57854.0,57853.0,0.111]
[1720813916308,0.58380942,57854.0,57853.0,0.111]
[1720813916555,0.92950642,57854.0,57853.0,0.111]
[1720813917043,0.01332276,57854.0,57853.0,0.1221]
[1720813917328,0.18717076,57854.0,57853.0,0.119]
[1720813917953,0.01432276,57854.0,57853.0,0.119]
[1720813918155,0.01432276,57854.0,57853.0,0.291851]
[1720813918576,0.01422276,57854.0,57853.0,0.119]
[1720813918789,0.002,57854.0,57853.0,0.119]
[1720813919884,0.0019,57854.0,57853.0,0.119]
[1720813920803,0.91743572,57854.0,57853.0,0.119]
[1720813921022,0.91733572,57854.0,57853.0,0.119]
[1720813921252,0.91733572,57854.0,57853.0,0.019]
[1720813921253,2.354815,57854.0,57853.0,0.019]
[1720813921481,2.354815,57854.0,57837.0,0.100913]
[1720813921482,0.518689,57838.0,57837.0,0.100913]
[1720813921699,0.56999122,57838.0,57837.0,0.100913]
[1720813921916,0.56943778,57838.0,57837.0,0.100913]
[1720813922126,0.172891,57840.0,57838.0,0.1]
[1720813922351,0.10151919,57846.0,57845.0,0.1]
[1720813922566,0.15534232,57853.0,57842.0,0.345769]
[1720813922567,0.345715,57851.0,57850.0,0.1]
[1720813922775,0.39694046,57851.0,57847.0,0.1]
[1720813922988,0.172869,57847.0,57846.0,0.099]
[1720813923207,0.22409601,57847.0,57846.0,0.098]
[1720813923710,0.864347,57847.0,57846.0,0.098]
[1720813923918,0.864347,57847.0,57846.0,0.1081]
[1720813923919,0.172869,57847.0,57846.0,0.1081]
[1720813924130,0.518608,57847.0,57846.0,0.098]
[1720813924353,0.518608,57847.0,57846.0,0.11504085]
[1720813924560,0.172869,57847.0,57846.0,0.11504085]
[1720813924985,0.518608,57847.0,57846.0,0.11504085]
[1720813925426,1.209986,57847.0,57846.0,0.01704085]
[1720813925644,0.172872,57846.0,57845.0,0.098]
[1720813925859,0.864362,57846.0,57845.0,0.098]
[1720813926717,0.864262,57846.0,57845.0,0.098]
[1720813927147,0.864262,57846.0,57845.0,0.099]
[1720813927577,0.51961,57847.0,57846.0,0.098]
[1720813927794,0.173871,57847.0,57846.0,0.098]
[1720813928017,0.001,57847.0,57846.0,0.11504085]
[1720813928227,0.001,57847.0,57846.0,0.12763494]
[1720813928679,0.01168209,57847.0,57846.0,0.12763494]
[1720813929300,0.00861856,57847.0,57846.0,0.90165785]
[1720813929515,0.172839,57857.0,57856.0,0.098]
[1720813929724,0.172839,57857.0,57856.0,0.096]
[1720813929940,0.864197,57857.0,57856.0,0.01696181]
[1720813930168,0.91604978,57857.0,57856.0,0.01696181]
[1720813930375,0.518554,57853.0,57852.0,0.096]
[1720813930586,0.864257,57853.0,57852.0,0.095]
[1720813931004,0.864157,57853.0,57852.0,0.095]
[1720813931469,0.864157,57853.0,57852.0,0.11199342]
[1720813931679,0.518454,57853.0,57852.0,0.11199342]
[1720813931890,0.345695,57855.0,57852.0,0.11199342]
[1720813932105,0.345687,57856.0,57854.0,0.095]
[1720813932333,0.345679,57857.0,57854.0,0.095]
[1720813932334,0.518536,57855.0,57854.0,0.095]
[1720813932560,0.345679,57857.0,57855.0,0.095]
[1720813932561,0.17590653,57856.0,57855.0,0.095]
[1720813932782,0.52159153,57856.0,57855.0,0.095]
[1720813932990,0.52159153,57856.0,57855.0,0.11096971]
[1720813933211,0.172839,57858.0,57857.0,0.094]
[1720813933440,0.42167936,57861.0,57858.0,0.09]
[1720813933441,0.00306353,57861.0,57858.0,0.09]
[1720813933667,0.34872153,57861.0,57860.0,0.09]
[1720813933923,0.96720653,57861.0,57860.0,0.09]
[1720813934163,0.964143,57861.0,57860.0,0.089]
[1720813934625,0.618485,57861.0,57860.0,0.089]
[1720813934861,0.618485,57861.0,57860.0,0.10693021]
[1720813935089,0.518485,57861.0,57860.0,0.10693021]
[1720813936005,0.53060002,57861.0,57860.0,0.10693021]
[1720813936724,0.53060002,57861.0,57860.0,0.13166323]
[1720813936997,0.53060002,57861.0,57860.0,1.09108221]
[1720813936998,0.002,57861.0,57860.0,1.09108221]
[1720813937233,0.002,57861.0,57860.0,0.97108221]
[1720813938012,0.42166199,57871.0,57860.0,0.45259121]
[1720813938248,0.44700798,57873.0,57871.0,0.089]
[1720813938249,0.52878172,57872.0,57871.0,0.089]
[1720813938531,0.58066045,57872.0,57871.0,0.089]
[1720813938751,0.57026373,57872.0,57871.0,0.10668165]
[1720813938997,0.58266539,57872.0,57871.0,0.088]
[1720813939250,0.92825539,57872.0,57871.0,0.088]
[1720813939494,0.518421,57868.0,57867.0,0.088]
[1720813939738,0.51843,57867.0,57866.0,0.088]
[1720813939975,0.58271039,57867.0,57866.0,0.088]
[1720813940213,0.58271039,57867.0,57866.0,0.10572114]
[1720813940462,0.92833039,57867.0,57866.0,0.01772114]
[1720813940718,0.58271039,57867.0,57866.0,0.10572114]
[1720813940945,0.172813,57866.0,57865.0,0.088]
[1720813941200,0.23714942,57866.0,57865.0,0.088]
[1720813941944,0.18512564,57866.0,57865.0,0.088]
[1720813942180,0.58284332,57866.0,57865.0,0.088]
[1720813942415,0.172821,57864.0,57859.0,0.172833]
[1720813942655,0.172821,57864.0,57863.0,0.088]
[1720813942944,0.23675813,57864.0,57863.0,0.088]
[1720813943189,0.53056737,57864.0,57863.0,0.088]
[1720813943921,0.58196175,57864.0,57863.0,0.088]
[1720813944228,0.58296175,57864.0,57863.0,0.097]
[1720813944416,0.58296175,57864.0,57863.0,0.103]
[1720813944417,0.92960019,57864.0,57863.0,0.103]
[1720813944654,0.58396219,57864.0,57863.0,0.103]
[1720813944896,0.58396219,57864.0,57863.0,0.12074484]
[1720813944897,0.53175989,57864.0,57863.0,0.12074484]
[1720813945127,0.53175989,57864.0,57863.0,0.103]
[1720813945372,0.53175989,57864.0,57863.0,0.12074484]
[1720813947314,0.53175989,57864.0,57863.0,0.32292462]
[1720813947315,0.01330089,57864.0,57863.0,0.32292462]
[1720813947542,0.01330089,57864.0,57863.0,0.38392462]
[1720813947543,0.01341287,57864.0,57863.0,0.38392462]
[1720813947779,0.01341287,57864.0,57863.0,0.72956862]
[1720813949913,0.01341287,57864.0,57863.0,0.21110262]
[1720813950167,0.01341287,57864.0,57863.0,0.38392462]
[1720813950678,0.01341287,57864.0,57863.0,0.21110262]
[1720813950887,0.01361649,57864.0,57863.0,0.82366695]
[1720813951125,0.01361649,57864.0,57863.0,0.82021084]
[1720813951353,0.01361649,57864.0,57863.0,0.70021084]
[1720813952115,0.01361649,57864.0,57863.0,0.35456684]
[1720813952587,0.18643549,57864.0,57863.0,0.12074484]
[1720813952818,0.53207349,57864.0,57863.0,0.12074484]
[1720813953297,0.53207349,57864.0,57863.0,0.103]
[1720813953762,0.18643549,57864.0,57863.0,0.103]
[1720813953994,0.17788253,57864.0,57863.0,0.12084484]
[1720813954211,0.53505788,57864.0,57863.0,0.12084484]
[1720813954426,0.58327389,57864.0,57863.0,0.12084484]
[1720813955068,0.18635635,57864.0,57863.0,0.12084484]
[1720813955277,0.18941988,57864.0,57863.0,0.12084484]
[1720813955692,0.58335055,57864.0,57863.0,0.12084484]
[1720813956734,0.23771255,57864.0,57863.0,0.12084484]
[1720813958043,0.58341212,57864.0,57863.0,0.12084484]
[1720813958936,0.23777412,57864.0,57863.0,0.12084484]
[1720813959159,0.06495512,57864.0,57863.0,0.29366684]
[1720813960478,0.06495512,57864.0,57863.0,0.12084484]
[1720813960695,0.002,57864.0,57863.0,0.29366684]
[1720813960911,0.002,57864.0,57863.0,0.12084484]
[1720813961340,0.0651055,57864.0,57863.0,0.12084484]
[1720813962076,1.9217249,57864.0,57863.0,0.03284484]
[1720813962316,1.9217249,57864.0,57860.0,0.000913]
[1720813962317,0.785782,57861.0,57860.0,0.000913]
[1720813962548,1.210065,57848.0,57847.0,0.088]
[1720813962797,1.2731705,57848.0,57847.0,0.088]
[1720813963025,0.9274375,57848.0,57847.0,0.088]
[1720813963900,0.92717621,57848.0,57847.0,0.088]
[1720813964137,0.92717621,57848.0,57847.0,0.089]
[1720813964347,1.00328126,57848.0,57847.0,0.088]
[1720813964559,0.92707621,57848.0,57847.0,0.088]
[1720813964704,0.58144321,57848.0,57847.0,0.088]
[1720813964918,1.00328126,57848.0,57847.0,0.088]
[1720813965123,1.27490921,57848.0,57847.0,0.089]
[1720813965934,1.27480921,57848.0,57847.0,0.089]
[1720813966379,1.27480921,57848.0,57847.0,0.088]
[1720813967337,1.22330981,57848.0,57845.0,0.088]
[1720813967543,1.22330981,57848.0,57841.0,0.088]
[1720813967544,0.518653,57842.0,57841.0,0.088]
[1720813967773,1.22143581,57842.0,57841.0,0.088]
[1720813968262,1.22133581,57842.0,57841.0,0.088]
[1720813968498,1.32280475,57842.0,57841.0,0.088]
[1720813968717,1.22133581,57842.0,57841.0,0.088]
[1720813969436,0.864482,57838.0,57837.0,0.088913]
[1720813969663,0.87572681,57838.0,57837.0,0.088913]
[1720813970450,1.22151981,57838.0,57837.0,0.088913]
[1720813970707,1.2211071,57838.0,57837.0,0.088913]
[1720813970927,1.2221071,57838.0,57837.0,0.088913]
[1720813971205,1.22326431,57838.0,57837.0,0.088913]
[1720813971423,1.28215125,57838.0,57837.0,0.088913]
[1720813971646,1.28215125,57838.0,57837.0,0.000913]
[1720813972142,1.22326431,57838.0,57837.0,0.000913]
[1720813972368,0.53167831,57838.0,57837.0,0.088913]
[1720813972605,0.53167831,57838.0,57837.0,0.236413]
[1720813972606,0.01198931,57838.0,57837.0,0.236413]
[1720813972813,0.01288931,57838.0,57837.0,0.27063899]
[1720813973025,0.01278931,57838.0,57837.0,0.27063899]
[1720813973228,0.01098931,57838.0,57837.0,0.27063899]
[1720813973434,0.01198931,57838.0,57837.0,0.27063899]
[1720813973645,0.01298931,57838.0,57837.0,0.27063899]
[1720813973859,0.01198931,57838.0,57837.0,0.27063899]
[1720813974069,0.01298931,57838.0,57837.0,0.24699769]
[1720813974281,0.01098931,57838.0,57837.0,0.24699769]
[1720813974488,0.18388531,57838.0,57837.0,0.09949769]
[1720813974691,0.53167831,57838.0,57837.0,0.09949769]
[1720813974899,0.18588531,57838.0,57837.0,0.09949769]
[1720813975088,0.18488531,57838.0,57837.0,0.09949769]
[1720813975763,0.18388531,57838.0,57837.0,0.09949769]
[1720813976172,0.18488531,57838.0,57837.0,0.09949769]
[1720813976375,0.52967831,57838.0,57837.0,0.09949769]
[1720813976549,0.18488531,57838.0,57837.0,0.09949769]
[1720813976753,0.18588531,57838.0,57837.0,0.09949769]
[1720813976885,0.18488531,57838.0,57837.0,0.09949769]
[1720813977102,0.53016743,57838.0,57837.0,0.09949769]
[1720813977303,0.53116743,57838.0,57837.0,0.09949769]
[1720813977723,0.18537443,57838.0,57837.0,0.09949769]
[1720813978349,0.53116743,57838.0,57837.0,0.09949769]
[1720813978553,0.53106743,57838.0,57837.0,0.09949769]
[1720813979474,0.18547443,57838.0,57837.0,0.09949769]
[1720813979679,0.01257843,57838.0,57837.0,0.09949769]
[1720813979891,0.01257843,57838.0,57837.0,0.29607026]
[1720813980095,0.01257843,57838.0,57837.0,0.17607026]
[1720813980505,0.002,57838.0,57837.0,0.17607026]
[1720813980714,0.01258005,57838.0,57837.0,0.17607026]
[1720813981287,0.18547605,57838.0,57837.0,0.17607026]
[1720813981493,0.01258005,57838.0,57837.0,0.09949769]
[1720813982315,0.01258005,57838.0,57837.0,1.0874524]
[1720813982751,0.01248005,57838.0,57837.0,1.0874524]
[1720813982956,0.0019,57838.0,57837.0,0.89972984]
[1720813983190,0.0019,57838.0,57837.0,0.6216534]
[1720813983434,0.01248011,57838.0,57837.0,0.6216534]
[1720813983697,0.01248045,57838.0,57837.0,0.6216534]
[1720813983949,0.01248045,57838.0,57837.0,0.7416534]
[1720813984402,0.01248045,57838.0,57837.0,0.6216534]
[1720813984640,0.01248045,57838.0,57837.0,0.27239669]
[1720813984868,0.01248045,57838.0,57837.0,0.09949769]
[1720813984869,0.18537645,57838.0,57837.0,0.09949769]
[1720813985144,1.22707778,57838.0,57837.0,0.01149769]
[1720813985379,1.74255137,57838.0,57837.0,0.01149769]
[1720813985612,1.74255137,57838.0,57837.0,0.000913]
[1720813985613,2.269861,57838.0,57837.0,0.000913]
[1720813985844,1.98433054,57838.0,57837.0,0.000913]
[1720813986075,1.98433054,57838.0,57837.0,0.001013]
[1720813986317,1.98415724,57838.0,57837.0,0.001013]
[1720813986552,1.86415724,57838.0,57837.0,0.001013]
[1720813986777,1.51736424,57838.0,57837.0,0.001013]
[1720813988000,0.01060661,57838.0,57837.0,0.089013]
[1720813988244,0.172894,57839.0,57838.0,0.088]
[1720813988475,0.1836435,57839.0,57838.0,0.088]